bitfinex/quotes_BTCUSD_20230907
["timestamp","ask_amount","ask_price","bid_price","bid_amount"]
[1694126910022,0.122,26437.0,26436.0,0.42503123]
[1694126910254,0.122,26437.0,26436.0,0.023]
[1694126910493,0.36541086,26437.0,26436.0,0.023]
[1694126912146,0.263,26437.0,26436.0,0.023]
[1694126912391,0.283,26437.0,26436.0,0.023]
[1694126912649,0.79151813,26437.0,26436.0,0.023]
[1694126913139,0.79051813,26437.0,26436.0,0.022614]
[1694126913390,0.81551813,26437.0,26436.0,0.024229]
[1694126913862,0.79051813,26437.0,26436.0,0.022229]
[1694126914096,0.81051813,26437.0,26436.0,0.024229]
[1694126914799,0.82951813,26437.0,26436.0,0.026229]
[1694126915282,0.80751813,26437.0,26436.0,0.002]
[1694126919742,0.8193701,26437.0,26436.0,0.002]
[1694126927307,0.199,26437.0,26436.0,0.01416887]
[1694126928444,0.199,26437.0,26436.0,0.77071287]
[1694126928665,0.199,26437.0,26436.0,0.01416887]
[1694126928903,0.199,26437.0,26436.0,0.40272209]
[1694126929955,0.199,26437.0,26436.0,0.002]
[1694126930384,0.4091292,26437.0,26436.0,0.002]
[1694126931757,0.139,26437.0,26436.0,0.39055322]
[1694126931991,0.139,26437.0,26436.0,0.01586885]
[1694126931992,0.199,26437.0,26436.0,0.01586885]
[1694126933158,0.119,26437.0,26436.0,0.39055322]
[1694126933404,0.119,26437.0,26436.0,2.90544522]
[1694126933648,0.119,26437.0,26436.0,2.82565578]
[1694126933917,0.119,26437.0,26436.0,3.97706778]
[1694126934187,0.119,26437.0,26436.0,2.97706778]
[1694126934437,0.1,26437.0,26436.0,2.97506778]
[1694126934925,0.11,26437.0,26436.0,2.97606778]
[1694126935148,0.1,26437.0,26436.0,2.21852378]
[1694126935606,0.101,26437.0,26436.0,2.23452378]
[1694126935963,0.121,26437.0,26436.0,0.320212]
[1694126936171,0.121,26437.0,26436.0,0.031]
[1694126936172,0.122,26437.0,26436.0,0.031]
[1694126936389,0.121,26437.0,26436.0,0.016]
[1694126936604,0.37422825,26437.0,26436.0,0.016]
[1694126936811,0.123,26437.0,26436.0,0.041]
[1694126937007,0.123,26437.0,26436.0,0.05477983]
[1694126937253,0.123,26437.0,26436.0,0.81132383]
[1694126937617,0.123,26437.0,26436.0,2.32441183]
[1694126938035,0.123,26437.0,26436.0,0.81132383]
[1694126938238,0.123,26437.0,26436.0,0.05477983]
[1694126938432,0.123,26437.0,26436.0,1.95642105]
[1694126938636,0.123,26437.0,26436.0,0.05477983]
[1694126939287,0.123,26437.0,26436.0,1.56786783]
[1694126940062,0.123,26437.0,26436.0,2.71296505]
[1694126940294,0.123,26437.0,26436.0,1.95642105]
[1694126940842,0.123,26437.0,26436.0,0.05477983]
[1694126943606,0.123,26437.0,26436.0,0.041]
[1694126944032,0.122,26437.0,26436.0,0.025]
[1694126944460,0.123,26437.0,26436.0,0.032]
[1694126944884,0.122,26437.0,26436.0,0.025]
[1694126945090,0.121,26437.0,26436.0,0.007]
[1694126945302,0.123,26437.0,26436.0,0.032]
[1694126945507,0.121,26437.0,26436.0,0.007]
[1694126946008,0.123,26437.0,26436.0,0.032]
[1694126947723,0.83616257,26437.0,26436.0,0.032]
[1694126947992,0.97155322,26437.0,26436.0,0.032]
[1694126948210,1.18678607,26437.0,26436.0,0.032]
[1694126948422,0.97055322,26437.0,26436.0,0.025]
[1694126948645,0.97055322,26437.0,26428.0,0.03806]
[1694126948646,0.08,26429.0,26428.0,0.03806]
[1694126948864,0.23542129,26429.0,26428.0,0.03806]
[1694126949082,0.25542129,26429.0,26428.0,0.03806]
[1694126949303,0.12,26428.0,26427.0,0.01225238]
[1694126949517,0.27542129,26428.0,26427.0,0.01225238]
[1694126949956,0.12,26428.0,26427.0,0.01225238]
[1694126950654,0.12,26428.0,26425.0,0.03806]
[1694126950873,0.12,26428.0,26425.0,0.05055591]
[1694126951082,0.274,26428.0,26427.0,0.025]
[1694126951513,0.274,26428.0,26427.0,0.024]
[1694126951731,0.153,26428.0,26426.0,0.01523621]
[1694126951960,0.12,26427.0,26426.0,0.01523621]
[1694126952621,0.12,26427.0,26425.0,0.007]
[1694126952622,0.2,26426.0,26425.0,0.007]
[1694126952847,0.2,26426.0,26421.0,0.05059912]
[1694126952848,0.08,26422.0,26421.0,0.05059912]
[1694126953087,0.22542129,26422.0,26421.0,0.03806]
[1694126953316,0.07,26422.0,26421.0,0.03806]
[1694126953955,0.072,26422.0,26421.0,0.06306]
[1694126954625,0.112,26422.0,26421.0,0.06306]
[1694126955272,0.60255322,26422.0,26421.0,0.049]
[1694126955488,0.512,26422.0,26421.0,0.025]
[1694126955721,0.512,26422.0,26421.0,0.049]
[1694126955722,0.514,26422.0,26421.0,0.049]
[1694126955936,0.512,26422.0,26421.0,0.024]
[1694126956144,0.19,26421.0,26420.0,0.01417691]
[1694126956361,0.49,26421.0,26420.0,0.01417691]
[1694126957662,0.492,26421.0,26420.0,0.03917691]
[1694126957887,0.492,26421.0,26420.0,0.025]
[1694126959039,0.094,26421.0,26420.0,0.08706]
[1694126959270,0.094,26421.0,26420.0,0.23986]
[1694126959516,0.094,26421.0,26420.0,0.25355774]
[1694126960465,0.094,26421.0,26420.0,0.10075774]
[1694126961870,0.094,26421.0,26420.0,0.06269774]
[1694126963391,0.094,26421.0,26420.0,0.10075774]
[1694126965585,0.094,26421.0,26420.0,0.06269774]
[1694126966785,0.7406229,26421.0,26420.0,0.049]
[1694126967029,0.35206968,26421.0,26420.0,0.049]
[1694126967279,0.35206968,26421.0,26420.0,0.06161425]
[1694126967280,0.114,26421.0,26420.0,0.06161425]
[1694126967528,0.114,26421.0,26420.0,0.25247425]
[1694126967767,0.114,26421.0,26420.0,0.09967425]
[1694126969692,0.114,26421.0,26420.0,0.85667625]
[1694126969945,0.114,26421.0,26420.0,0.09967425]
[1694126971643,0.17709591,26428.0,26420.0,0.47561322]
[1694126971903,0.08,26432.0,26424.0,0.02]
[1694126972147,0.02,26433.0,26431.0,0.1528]
[1694126972419,0.22457551,26432.0,26431.0,0.1528]
[1694126972656,0.06,26435.0,26431.0,0.1528]
[1694126972904,0.19615504,26434.0,26431.0,0.1528]
[1694126973125,0.19615504,26434.0,26433.0,0.1146]
[1694126973369,0.06,26434.0,26433.0,0.1146]
[1694126973618,0.25218821,26432.0,26431.0,0.11517246]
[1694126973873,0.4076095,26432.0,26431.0,0.11517246]
[1694126974127,0.5164,26434.0,26433.0,0.00057123]
[1694126974381,0.90495322,26434.0,26433.0,0.00057123]
[1694126975112,0.002,26432.0,26431.0,0.029]
[1694126975366,0.24381969,26432.0,26431.0,0.004]
[1694126975620,0.24381969,26432.0,26429.0,0.1146]
[1694126975856,0.24381969,26432.0,26429.0,0.12750649]
[1694126976144,0.04,26436.0,26434.0,0.4003]
[1694126976403,0.04,26436.0,26435.0,0.42661322]
[1694126976670,0.04,26436.0,26435.0,3.04937722]
[1694126976927,0.08,26443.0,26435.0,3.04937722]
[1694126976928,0.2531,26443.0,26436.0,0.04]
[1694126977175,0.02,26445.0,26438.0,0.03806]
[1694126977176,0.04,26439.0,26438.0,0.03806]
[1694126977417,0.04,26439.0,26438.0,0.15266]
[1694126978159,0.04,26439.0,26438.0,0.03806]
[1694126978455,0.04,26439.0,26438.0,0.06306]
[1694126978757,0.27079148,26439.0,26438.0,0.03806]
[1694126979026,0.27079148,26439.0,26438.0,0.07706]
[1694126979556,0.04,26439.0,26438.0,0.039]
[1694126980972,0.04,26439.0,26438.0,0.03956381]
[1694126981855,0.24996782,26439.0,26438.0,0.03956381]
[1694126982939,0.24996782,26439.0,26438.0,0.02556381]
[1694126983395,0.57097129,26439.0,26429.0,0.00755]
[1694126983637,0.57097129,26439.0,26428.0,0.12485702]
[1694126983638,0.08,26433.0,26428.0,0.12485702]
[1694126983878,0.17542129,26432.0,26430.0,0.1341348]
[1694126984071,0.3,26431.0,26430.0,0.1341348]
[1694126985494,0.311,26431.0,26430.0,0.1351348]
[1694126985716,0.312,26431.0,26430.0,0.003]
[1694126987093,0.3,26431.0,26429.0,0.12871194]
[1694126987322,0.301,26431.0,26430.0,0.002]
[1694126987545,1.10603022,26431.0,26430.0,0.003]
[1694126987766,0.93675407,26431.0,26430.0,0.002]
[1694126988001,0.08,26430.0,26425.0,0.12382259]
[1694126988222,0.21542129,26430.0,26426.0,0.05598351]
[1694126988448,0.42380062,26429.0,26426.0,0.05598351]
[1694126989380,0.3,26429.0,26426.0,0.1528]
[1694126989608,0.312,26431.0,26427.0,0.38855322]
[1694126989832,0.301,26431.0,26427.0,0.38855322]
[1694126990052,0.003,26430.0,26427.0,0.38855322]
[1694126990269,0.301,26431.0,26427.0,0.42661322]
[1694126990750,0.3,26431.0,26427.0,0.42661322]
[1694126990967,0.001,26429.0,26427.0,0.42661322]
[1694126991178,0.001,26429.0,26427.0,0.44061322]
[1694126991391,0.12291153,26430.0,26427.0,0.42661322]
[1694126991609,0.12291153,26430.0,26427.0,0.03806]
[1694126991832,0.12291153,26430.0,26427.0,0.05206]
[1694126992437,0.12291153,26430.0,26427.0,0.06606]
[1694126993316,0.12291153,26430.0,26427.0,0.028]
[1694126993532,0.12291153,26430.0,26426.0,0.11772578]
[1694126993744,0.001,26429.0,26427.0,0.025]
[1694126993892,0.12291153,26430.0,26427.0,0.005]
[1694126994326,0.12391153,26430.0,26427.0,0.023]
[1694126994586,0.12291153,26430.0,26426.0,0.12272578]
[1694126994761,0.12291153,26430.0,26427.0,0.025]
[1694126994957,0.001,26429.0,26427.0,0.025]
[1694126995164,0.001,26429.0,26426.0,0.11772578]
[1694126995165,0.12291153,26430.0,26426.0,0.11772578]
[1694126995360,0.12291153,26430.0,26427.0,0.005]
[1694126996460,0.12391153,26430.0,26427.0,0.028]
[1694126996680,0.12291153,26430.0,26427.0,0.005]
[1694126997146,0.12291153,26430.0,26427.0,0.006]
[1694126997373,0.001,26429.0,26427.0,0.006]
[1694126997799,0.12291153,26430.0,26427.0,0.006]
[1694126998120,0.12391153,26430.0,26427.0,0.001]
[1694126998548,0.84135322,26429.0,26422.0,0.22519047]
[1694126998779,0.17542129,26428.0,26423.0,0.02548944]
[1694126999001,0.3,26427.0,26423.0,0.02548944]
[1694126999213,0.45542129,26427.0,26423.0,0.02548944]
[1694126999409,0.3,26427.0,26423.0,0.02548944]
[1694127000022,0.3,26427.0,26423.0,0.02748944]
[1694127000227,0.3,26427.0,26423.0,0.02548944]
[1694127000643,0.314,26427.0,26423.0,0.02748944]
[1694127001071,0.326,26427.0,26423.0,0.02948944]
[1694127001794,0.314,26427.0,26424.0,0.12129876]
[1694127002037,0.326,26427.0,26424.0,0.12129876]
[1694127002886,0.312,26427.0,26424.0,0.12129876]
[1694127003105,0.014,26427.0,26423.0,0.002]
[1694127003564,0.014,26427.0,26424.0,0.12882631]
[1694127003565,0.012,26427.0,26424.0,0.12882631]
[1694127004045,0.011,26427.0,26424.0,0.12982631]
[1694127004302,0.012,26427.0,26424.0,0.12882631]
[1694127004561,0.023,26427.0,26424.0,0.12882631]
[1694127004812,0.12464017,26427.0,26424.0,0.12882631]
[1694127005052,0.12464017,26427.0,26424.0,0.13082631]
[1694127005053,3.039264,26427.0,26424.0,0.13082631]
[1694127005265,2.282448,26427.0,26424.0,0.13082631]
[1694127006386,2.282448,26427.0,26425.0,0.05022587]
[1694127006624,2.293448,26427.0,26425.0,0.05022587]
[1694127007333,2.281448,26427.0,26425.0,0.05022587]
[1694127007573,2.282448,26427.0,26425.0,0.05222587]
[1694127007816,2.293448,26427.0,26425.0,0.003]
[1694127008571,2.293448,26427.0,26425.0,0.02742839]
[1694127009043,2.293448,26427.0,26426.0,0.15065245]
[1694127009985,2.270448,26427.0,26426.0,0.15065245]
[1694127010114,2.270448,26427.0,26426.0,0.15165245]
[1694127010326,2.293448,26427.0,26426.0,0.15365245]
[1694127014002,2.243448,26427.0,26426.0,0.15365245]
[1694127019547,2.283448,26427.0,26426.0,0.15365245]
[1694127023160,2.90742251,26427.0,26426.0,0.003]
[1694127023366,3.15500122,26427.0,26426.0,0.003]
[1694127023612,3.30231122,26427.0,26426.0,0.003]
[1694127024099,4.81594322,26427.0,26426.0,0.003]
[1694127024336,4.91471871,26427.0,26426.0,0.003]
[1694127024557,5.02941871,26427.0,26426.0,0.003]
[1694127025056,5.01741871,26427.0,26426.0,0.001]
[1694127025290,5.04141871,26427.0,26426.0,0.003]
[1694127025518,0.02,26419.0,26416.0,0.1568895]
[1694127025750,1.66953929,26418.0,26416.0,0.54544272]
[1694127025970,1.66953929,26418.0,26417.0,0.1147]
[1694127026188,1.514118,26418.0,26417.0,0.1147]
[1694127026874,1.514118,26418.0,26417.0,0.15467431]
[1694127027499,1.514118,26418.0,26417.0,0.17967431]
[1694127027500,1.516118,26418.0,26417.0,0.17967431]
[1694127027965,1.516118,26418.0,26417.0,0.06497431]
[1694127028189,1.518118,26418.0,26417.0,0.08897431]
[1694127028667,1.518118,26418.0,26417.0,0.53646669]
[1694127030646,1.518118,26418.0,26417.0,0.08897431]
[1694127030647,2.275177,26418.0,26417.0,0.08897431]
[1694127031791,2.315177,26418.0,26417.0,0.08897431]
[1694127032471,2.315177,26418.0,26417.0,0.20367431]
[1694127032472,0.044,26418.0,26417.0,0.20367431]
[1694127032707,0.07191805,26418.0,26417.0,0.20367431]
[1694127032933,0.07191805,26418.0,26417.0,0.19867431]
[1694127033172,0.07191805,26418.0,26417.0,0.58722753]
[1694127033413,0.044,26418.0,26417.0,0.58722753]
[1694127033652,0.044,26418.0,26417.0,0.19867431]
[1694127035625,0.044,26418.0,26417.0,0.28832155]
[1694127037103,0.044,26418.0,26417.0,1.61443078]
[1694127037308,0.044,26418.0,26417.0,0.74962278]
[1694127037524,0.071871,26418.0,26417.0,0.74962278]
[1694127037725,0.044,26418.0,26417.0,0.74462278]
[1694127038127,0.004,26418.0,26417.0,0.63690046]
[1694127038350,0.004,26418.0,26417.0,3.81369222]
[1694127038569,0.03191885,26418.0,26417.0,3.82803854]
[1694127038787,0.004,26418.0,26417.0,3.69267854]
[1694127039015,0.004,26418.0,26417.0,3.68595854]
[1694127039242,0.004,26418.0,26417.0,3.68241854]
[1694127039458,0.004,26418.0,26417.0,3.61713948]
[1694127039667,0.004,26418.0,26417.0,3.75277222]
[1694127039877,0.004,26418.0,26417.0,3.76627222]
[1694127040081,0.004,26418.0,26417.0,3.76531222]
[1694127040330,0.004,26418.0,26417.0,3.75979222]
[1694127040569,0.004,26418.0,26417.0,3.74857222]
[1694127040975,0.004,26418.0,26417.0,3.75103222]
[1694127041183,0.004,26418.0,26417.0,3.75097222]
[1694127041415,0.004,26418.0,26417.0,3.75205222]
[1694127041642,0.004,26418.0,26417.0,3.57287918]
[1694127041857,0.004,26418.0,26417.0,3.57857918]
[1694127042071,0.004,26418.0,26417.0,2.05394503]
[1694127042279,0.004,26418.0,26417.0,2.78921118]
[1694127042499,0.004,26418.0,26417.0,1.712876]
[1694127042732,0.004,26418.0,26417.0,2.39970712]
[1694127042956,0.004,26418.0,26417.0,2.27259438]
[1694127043171,0.004,26418.0,26417.0,3.02824238]
[1694127043377,0.004,26418.0,26417.0,2.27121438]
[1694127043590,0.004,26418.0,26417.0,2.25627438]
[1694127043800,0.004,26418.0,26417.0,2.25915438]
[1694127044018,0.004,26418.0,26417.0,0.67687838]
[1694127044247,0.004,26418.0,26417.0,0.24832516]
[1694127044871,0.004,26418.0,26417.0,1.1123056]
[1694127047446,0.004,26418.0,26417.0,1.00541316]
[1694127047659,0.004,26418.0,26417.0,1.39396638]
[1694127047870,0.004,26418.0,26417.0,0.63687838]
[1694127052658,0.004,26418.0,26417.0,0.54725322]
[1694127053082,0.004,26418.0,26417.0,0.63687838]
[1694127054672,0.004,26418.0,26417.0,0.54725322]
[1694127055110,0.004,26418.0,26417.0,0.63687838]
[1694127055319,0.004,26418.0,26417.0,0.63734006]
[1694127055519,0.004,26418.0,26417.0,0.67540006]
[1694127055798,0.004,26418.0,26417.0,0.76502522]
[1694127056667,0.004,26418.0,26417.0,0.67540006]
[1694127056903,0.004,26418.0,26417.0,0.28684684]
[1694127057027,0.004,26418.0,26417.0,0.376472]
[1694127059262,0.004,26418.0,26417.0,0.28684684]
[1694127061257,0.004,26418.0,26417.0,0.376472]
[1694127062011,0.004,26418.0,26417.0,2.25361438]
[1694127062229,0.00757,26425.0,26417.0,2.25361438]
[1694127062230,0.13188989,26430.0,26424.0,0.04]
[1694127062447,0.04,26432.0,26427.0,0.38855322]
[1694127062664,0.02132,26433.0,26427.0,0.38855322]
[1694127062665,0.02554908,26429.0,26428.0,0.32044]
[1694127062877,0.02554908,26429.0,26428.0,1.34641922]
[1694127063086,0.04,26432.0,26428.0,2.85504522]
[1694127063338,0.04,26432.0,26431.0,0.1147]
[1694127063573,0.044,26432.0,26431.0,0.03806]
[1694127063984,0.04,26432.0,26431.0,0.03806]
[1694127064194,0.06345168,26432.0,26431.0,0.03806]
[1694127064636,0.06345168,26432.0,26430.0,0.03806]
[1694127064846,0.06345168,26432.0,26431.0,0.025]
[1694127065049,0.06445168,26432.0,26430.0,0.03806]
[1694127065459,0.041,26432.0,26431.0,0.50325322]
[1694127065680,0.04,26432.0,26431.0,0.50325322]
[1694127065898,0.06459449,26432.0,26431.0,0.51925322]
[1694127066129,0.06459449,26432.0,26431.0,0.016]
[1694127066335,0.041,26432.0,26431.0,0.041]
[1694127066594,0.0645646,26432.0,26431.0,0.041]
[1694127067669,0.0645646,26432.0,26431.0,0.18583071]
[1694127067865,0.0645646,26432.0,26431.0,1.39503093]
[1694127068066,0.0645646,26432.0,26431.0,1.33107093]
[1694127068437,0.041,26432.0,26431.0,1.33107093]
[1694127068799,0.041,26432.0,26431.0,0.57438393]
[1694127069231,0.15840539,26432.0,26431.0,0.041]
[1694127069825,0.1820061,26432.0,26431.0,0.041]
[1694127076539,0.06460071,26432.0,26431.0,0.041]
[1694127076744,0.06460071,26432.0,26431.0,0.14150172]
[1694127081352,0.06460071,26432.0,26431.0,0.25620172]
[1694127081967,0.041,26432.0,26431.0,0.25620172]
[1694127083636,0.041,26432.0,26431.0,1.40144194]
[1694127084067,0.041,26432.0,26431.0,0.64475494]
[1694127084290,0.041,26432.0,26431.0,1.40144194]
[1694127085145,0.041,26432.0,26431.0,0.64475494]
[1694127089908,0.041,26432.0,26431.0,0.25620172]
[1694127090784,0.041,26432.0,26431.0,0.1557]
[1694127091025,0.041,26432.0,26431.0,0.24758921]
[1694127091026,0.06284935,26432.0,26431.0,0.24758921]
[1694127091517,0.06284935,26432.0,26431.0,0.13288921]
[1694127092906,0.06284935,26432.0,26431.0,0.13336561]
[1694127096708,0.06284935,26432.0,26431.0,0.24806561]
[1694127107116,0.06284935,26432.0,26431.0,1.39330583]
[1694127107314,0.06284935,26432.0,26431.0,0.63661883]
[1694127107949,0.06284935,26432.0,26431.0,0.1561764]
[1694127108152,0.06284935,26432.0,26431.0,0.0414764]
[1694127110938,0.05784935,26432.0,26431.0,0.0414764]
[1694127113033,0.19370418,26432.0,26431.0,0.0414764]
[1694127113278,0.94611257,26432.0,26431.0,0.0414764]
[1694127113519,1.13141257,26432.0,26431.0,0.0414764]
[1694127114064,1.22894052,26432.0,26431.0,0.041]
[1694127114338,1.08163052,26432.0,26431.0,0.041]
[1694127115837,1.30857263,26432.0,26431.0,0.041]
[1694127116058,1.18804468,26432.0,26431.0,0.041]
[1694127116263,1.5285512,26432.0,26431.0,0.041]
[1694127116554,1.43776411,26432.0,26431.0,0.041]
[1694127116788,0.75296512,26432.0,26431.0,0.041]
[1694127116988,0.79835587,26432.0,26431.0,0.041]
[1694127117624,0.71835587,26432.0,26431.0,0.041]
[1694127117820,0.79835587,26432.0,26431.0,0.041]
[1694127118217,0.63939512,26432.0,26431.0,0.041]
[1694127118579,0.76429615,26432.0,26431.0,0.041]
[1694127118790,0.86633723,26432.0,26431.0,0.041]
[1694127119022,0.63939512,26432.0,26431.0,0.041]
[1694127121380,1.14264834,26432.0,26431.0,0.041]
[1694127123050,1.21096897,26432.0,26431.0,0.041]
[1694127124014,0.98410257,26432.0,26431.0,0.041]
[1694127124413,0.98410257,26432.0,26431.0,0.016]
[1694127124414,1.21091051,26432.0,26431.0,0.016]
[1694127124589,1.21091051,26432.0,26431.0,0.012]
[1694127125020,1.54367311,26432.0,26431.0,0.012]
[1694127125222,1.31686517,26432.0,26431.0,0.012]
[1694127125431,1.15980257,26432.0,26431.0,0.012]
[1694127125640,1.04510257,26432.0,26431.0,0.012]
[1694127126912,1.27183851,26432.0,26431.0,0.012]
[1694127127960,1.30209839,26432.0,26431.0,0.012]
[1694127128622,1.30204661,26432.0,26431.0,0.012]
[1694127129390,1.4833763,26432.0,26431.0,0.012]
[1694127129804,1.29393137,26432.0,26431.0,0.012]
[1694127130003,0.5680563,26432.0,26431.0,0.012]
[1694127130209,0.51976842,26432.0,26431.0,0.012]
[1694127130436,0.67542754,26432.0,26431.0,0.012]
[1694127130635,0.90832164,26432.0,26431.0,0.012]
[1694127130866,0.61348832,26432.0,26431.0,0.012]
[1694127131073,0.31348832,26432.0,26431.0,0.012]
[1694127131220,0.28322844,26432.0,26431.0,0.012]
[1694127131894,0.28322844,26432.0,26431.0,0.01247721]
[1694127132305,0.58322844,26432.0,26431.0,0.01247721]
[1694127132935,0.35884935,26432.0,26431.0,0.01247721]
[1694127135280,0.50280629,26432.0,26431.0,0.01247721]
[1694127135944,0.50280629,26432.0,26431.0,0.012]
[1694127136593,0.59346548,26432.0,26431.0,0.012]
[1694127137065,0.50280629,26432.0,26431.0,0.012]
[1694127137267,0.59346548,26432.0,26431.0,0.012]
[1694127137894,0.59346548,26432.0,26431.0,0.01247683]
[1694127138426,0.50280629,26432.0,26431.0,0.01247683]
[1694127138672,0.44950854,26432.0,26431.0,0.01247683]
[1694127138876,0.44950854,26432.0,26431.0,0.012]
[1694127139388,0.83806176,26432.0,26431.0,0.012]
[1694127139633,0.95276176,26432.0,26431.0,0.012]
[1694127140105,0.99809473,26432.0,26431.0,0.012]
[1694127140853,0.60478702,26432.0,26431.0,0.012]
[1694127141320,0.44952379,26432.0,26431.0,0.012]
[1694127141774,0.58551595,26432.0,26431.0,0.012]
[1694127142198,3.47615579,26432.0,26431.0,0.012]
[1694127143969,4.00070117,26432.0,26431.0,0.012]
[1694127144172,3.99570117,26432.0,26431.0,0.012]
[1694127144377,5.05771442,26432.0,26431.0,0.012]
[1694127144592,4.92172226,26432.0,26431.0,0.012]
[1694127145214,5.14840642,26432.0,26431.0,0.012]
[1694127145636,5.14740642,26432.0,26431.0,0.012]
[1694127145852,0.02,26431.0,26425.0,0.03806]
[1694127146053,0.031,26426.0,26425.0,0.03806]
[1694127146491,0.05195638,26426.0,26425.0,0.03806]
[1694127147145,0.05295638,26426.0,26425.0,0.06354258]
[1694127149279,0.05395638,26426.0,26425.0,0.08854258]
[1694127152405,0.02295638,26426.0,26425.0,0.08854258]
[1694127152609,0.02295638,26426.0,26425.0,2.9926328]
[1694127152824,0.02295638,26426.0,26425.0,3.1292528]
[1694127153040,0.02295638,26426.0,26425.0,4.0539918]
[1694127153224,0.031,26431.0,26427.0,0.07806]
[1694127153473,0.031,26431.0,26430.0,0.15276]
[1694127154133,0.031,26431.0,26430.0,0.15333318]
[1694127154974,0.031,26431.0,26430.0,0.24960394]
[1694127155591,0.04890253,26431.0,26430.0,0.27460394]
[1694127156238,0.04890253,26431.0,26430.0,0.29760394]
[1694127156446,0.04890253,26431.0,26430.0,0.20133318]
[1694127157270,0.04890253,26431.0,26430.0,0.32088793]
[1694127157484,0.04890253,26431.0,26430.0,1.79132318]
[1694127157720,0.04890253,26431.0,26430.0,1.79234318]
[1694127157926,0.04890253,26431.0,26430.0,1.79204318]
[1694127158135,0.04890253,26431.0,26430.0,1.4235814]
[1694127158349,0.04890253,26431.0,26430.0,0.68145505]
[1694127158784,0.031,26431.0,26430.0,0.68145505]
[1694127159395,0.031,26431.0,26430.0,0.5898864]
[1694127159580,0.031,26431.0,26430.0,0.7004664]
[1694127159725,0.031,26431.0,26430.0,0.5898864]
[1694127160765,0.031,26431.0,26430.0,0.70835484]
[1694127161007,0.031,26431.0,26430.0,0.5898864]
[1694127162870,0.031,26431.0,26430.0,0.6592464]
[1694127163095,0.031,26435.0,26430.0,2.9686314]
[1694127163310,0.031,26439.0,26433.0,0.03806]
[1694127163527,0.031,26439.0,26434.0,2.65828722]
[1694127163528,0.031,26438.0,26434.0,2.65828722]
[1694127163739,0.031,26437.0,26434.0,2.76706722]
[1694127163946,0.031,26437.0,26435.0,0.12962]
[1694127164152,0.031,26437.0,26436.0,1.513088]
[1694127164366,0.031,26437.0,26436.0,1.627788]
[1694127164579,0.031,26437.0,26436.0,1.705008]
[1694127164762,0.031,26437.0,26436.0,1.703508]
[1694127165010,0.01762507,26437.0,26436.0,2.85484522]
[1694127165222,0.01762507,26437.0,26436.0,2.86600522]
[1694127165438,0.031,26439.0,26437.0,0.03806]
[1694127165624,0.031,26439.0,26438.0,0.50325322]
[1694127166275,0.031,26439.0,26438.0,2.08096522]
[1694127166482,0.031,26439.0,26438.0,1.25973922]
[1694127167700,0.031,26439.0,26438.0,1.36710353]
[1694127167911,0.031,26439.0,26438.0,2.20406953]
[1694127168122,0.031,26439.0,26438.0,2.91963916]
[1694127168334,0.031,26439.0,26438.0,2.16315316]
[1694127168769,0.031,26441.0,26438.0,2.81227485]
[1694127168988,0.031,26439.0,26438.0,2.8643492]
[1694127169119,0.031,26439.0,26438.0,2.9782692]
[1694127169327,0.031,26439.0,26438.0,2.9741892]
[1694127169570,0.031,26439.0,26438.0,2.9768892]
[1694127169769,0.031,26439.0,26438.0,2.2037032]
[1694127170066,0.031,26439.0,26438.0,2.2007632]
[1694127170269,0.031,26439.0,26438.0,0.6236512]
[1694127170714,0.04865132,26439.0,26438.0,0.6236512]
[1694127170921,0.031,26439.0,26438.0,0.6236512]
[1694127171916,0.031,26439.0,26438.0,0.6376512]
[1694127173389,0.031,26439.0,26438.0,1.3941372]
[1694127173570,0.04775478,26439.0,26438.0,1.3941372]
[1694127173802,0.031,26439.0,26438.0,1.3941372]
[1694127174767,0.031,26439.0,26438.0,2.1506232]
[1694127174969,0.031,26442.0,26438.0,2.90647485]
[1694127175199,0.051,26442.0,26441.0,0.1147]
[1694127175386,0.051,26442.0,26441.0,0.871101]
[1694127176212,0.051,26442.0,26441.0,0.87166133]
[1694127176362,0.051,26442.0,26441.0,1.62806233]
[1694127176989,0.051,26442.0,26441.0,0.87166133]
[1694127176990,0.06775478,26442.0,26441.0,0.87166133]
[1694127177195,0.04775478,26442.0,26441.0,0.87166133]
[1694127177769,0.04775478,26442.0,26441.0,0.87466133]
[1694127177939,0.031,26442.0,26441.0,0.97415082]
[1694127179091,0.02,26443.0,26441.0,1.73055182]
[1694127179092,0.031,26443.0,26441.0,1.73055182]
[1694127179302,0.031,26443.0,26442.0,0.1147]
[1694127179513,0.051,26443.0,26442.0,0.1147]
[1694127179720,0.06780132,26443.0,26442.0,0.1147]
[1694127179969,0.06780132,26443.0,26442.0,0.871072]
[1694127180189,0.01680132,26443.0,26442.0,2.38437493]
[1694127180411,0.01680132,26443.0,26442.0,2.86232815]
[1694127180627,0.0202,26445.0,26444.0,0.109]
[1694127180857,0.0202,26445.0,26444.0,3.56087322]
[1694127181072,0.0202,26445.0,26444.0,4.57782822]
[1694127181288,0.0202,26445.0,26444.0,4.62447132]
[1694127181505,0.0202,26445.0,26444.0,4.55350822]
[1694127181723,0.0202,26445.0,26444.0,4.60944622]
[1694127181934,0.0202,26445.0,26444.0,4.63444622]
[1694127182154,0.0202,26445.0,26444.0,4.83800932]
[1694127182366,0.0202,26445.0,26444.0,4.83836932]
[1694127182549,0.0202,26445.0,26444.0,4.70120932]
[1694127182756,0.0202,26445.0,26444.0,4.70036932]
[1694127182964,0.0202,26445.0,26444.0,4.70096932]
[1694127183173,0.0202,26445.0,26444.0,4.70234932]
[1694127183385,0.0202,26445.0,26444.0,4.70270932]
[1694127183626,0.0202,26445.0,26444.0,4.73142932]